[Event "Early-Titled-Tuesday-Blitz-February-06-2024"]
[Site "Chess.com"]
[Date "2024.02.06"]
[Round "5"]
[White "GoValya"]
[Black "SergioMoralesG"]
[Result "0-1"]
[WhiteElo "2271"]
[BlackElo "2453"]
[TimeControl "180+1"]
[EndTime "8:55:26 PST"]
[Termination "SergioMoralesG won by checkmate"]

1. d4 {[%clk 0:03:00.9]} 1... d5 {[%clk 0:02:55.4]} 2. Nf3 {[%clk 0:03:01.1]}
2... Nf6 {[%clk 0:02:54.9]} 3. g3 {[%clk 0:03:01.7]} 3... Bf5 {[%clk 0:02:54.1]}
4. Bg2 {[%clk 0:03:02.1]} 4... e6 {[%clk 0:02:54.1]} 5. O-O {[%clk 0:03:02.6]}
5... h6 {[%clk 0:02:53.5]} 6. c4 {[%clk 0:03:03.1]} 6... c6 {[%clk 0:02:53.5]}
7. Nc3 {[%clk 0:03:03]} 7... Nbd7 {[%clk 0:02:53.3]} 8. Nd2 {[%clk 0:03:03.1]}
8... Be7 {[%clk 0:02:47.7]} 9. e4 {[%clk 0:03:03.5]} 9... dxe4 {[%clk 0:02:47]}
10. Ndxe4 {[%clk 0:03:03.8]} 10... O-O {[%clk 0:02:46]} 11. Bf4 {[%clk
0:02:56.1]} 11... Nb6 {[%clk 0:02:26.5]} 12. b3 {[%clk 0:02:48.9]} 12... Qd7
{[%clk 0:02:17]} 13. Nc5 {[%clk 0:02:19.6]} 13... Qc8 {[%clk 0:02:13.6]} 14. Qe2
{[%clk 0:02:08.4]} 14... Rd8 {[%clk 0:01:56.6]} 15. Rfd1 {[%clk 0:01:54.4]}
15... Bg4 {[%clk 0:01:55.6]} 16. f3 {[%clk 0:01:54.7]} 16... Bf5 {[%clk
0:01:55.4]} 17. N3e4 {[%clk 0:01:45.2]} 17... Nbd7 {[%clk 0:01:37]} 18. g4
{[%clk 0:01:38.2]} 18... Bg6 {[%clk 0:01:32.4]} 19. Rac1 {[%clk 0:01:19.2]}
19... Nxc5 {[%clk 0:01:31.5]} 20. Nxc5 {[%clk 0:01:15.5]} 20... Rxd4 {[%clk
0:01:27.3]} 21. Be3 {[%clk 0:00:54.2]} 21... Rxd1+ {[%clk 0:01:14.6]} 22. Rxd1
{[%clk 0:00:55.1]} 22... Qc7 {[%clk 0:01:07.6]} 23. Nd3 {[%clk 0:00:44.9]} 23...
Rd8 {[%clk 0:01:00.2]} 24. Nf4 {[%clk 0:00:39.4]} 24... Bh7 {[%clk 0:00:47.5]}
25. h4 {[%clk 0:00:29.3]} 25... e5 {[%clk 0:00:38.6]} 26. Nd3 {[%clk 0:00:21.9]}
26... e4 {[%clk 0:00:37.6]} 27. Nf2 {[%clk 0:00:20.3]} 27... exf3 {[%clk
0:00:34.6]} 28. Bxf3 {[%clk 0:00:21.2]} 28... Qg3+ {[%clk 0:00:29.3]} 29. Bg2
{[%clk 0:00:16.8]} 29... Rxd1+ {[%clk 0:00:26.5]} 30. Nxd1 {[%clk 0:00:17.7]}
30... Nxg4 {[%clk 0:00:25.6]} 31. Bd4 {[%clk 0:00:13.2]} 31... Bf8 {[%clk
0:00:17.5]} 32. Qf3 {[%clk 0:00:11.6]} 32... Qh2+ {[%clk 0:00:12.3]} 33. Kf1
{[%clk 0:00:11.8]} 33... Qxh4 {[%clk 0:00:13.2]} 34. Kg1 {[%clk 0:00:11.6]}
34... Qe1+ {[%clk 0:00:11.7]} 35. Qf1 {[%clk 0:00:11.4]} 35... Qh4 {[%clk
0:00:08.3]} 36. Qf3 {[%clk 0:00:10.8]} 36... Bc2 {[%clk 0:00:08.1]} 37. Qf1
{[%clk 0:00:11.7]} 37... Qh2# {[%clk 0:00:07.6]} 0-1

[Event "Early-Titled-Tuesday-Blitz-February-06-2024"]
[Site "Chess.com"]
[Date "2024.02.06"]
[Round "5"]
[White "Eloist"]
[Black "Dinosaurio_1975"]
[Result "0-1"]
[WhiteElo "2427"]
[BlackElo "2594"]
[TimeControl "180+1"]
[EndTime "8:55:27 PST"]
[Termination "Dinosaurio_1975 won by checkmate"]

1. e4 {[%clk 0:03:00.9]} 1... c6 {[%clk 0:02:58.7]} 2. Nf3 {[%clk 0:03:00.3]}
2... d5 {[%clk 0:02:59.6]} 3. d3 {[%clk 0:02:59.8]} 3... e6 {[%clk 0:02:59]} 4.
Be2 {[%clk 0:02:52.6]} 4... Nf6 {[%clk 0:02:57.9]} 5. e5 {[%clk 0:02:41]} 5...
Nfd7 {[%clk 0:02:56]} 6. d4 {[%clk 0:02:38.5]} 6... c5 {[%clk 0:02:55.8]} 7. c3
{[%clk 0:02:37.9]} 7... Nc6 {[%clk 0:02:55.7]} 8. O-O {[%clk 0:02:35.1]} 8...
Be7 {[%clk 0:02:50.9]} 9. Be3 {[%clk 0:02:26.9]} 9... O-O {[%clk 0:02:47.5]} 10.
Re1 {[%clk 0:02:19.7]} 10... cxd4 {[%clk 0:02:42.5]} 11. cxd4 {[%clk 0:02:19.1]}
11... f6 {[%clk 0:02:42.8]} 12. exf6 {[%clk 0:02:15]} 12... Bxf6 {[%clk
0:02:42.9]} 13. Nc3 {[%clk 0:02:12.1]} 13... Nb6 {[%clk 0:02:17.1]} 14. b3
{[%clk 0:02:02.4]} 14... Bd7 {[%clk 0:02:14.8]} 15. Qd2 {[%clk 0:02:00.9]} 15...
Be8 {[%clk 0:02:11.6]} 16. Ng5 {[%clk 0:01:39.4]} 16... Nxd4 {[%clk 0:01:45.7]}
17. Bxd4 {[%clk 0:01:31.7]} 17... Bxg5 {[%clk 0:01:44.7]} 18. Qb2 {[%clk
0:01:20.9]} 18... Bf6 {[%clk 0:01:35]} 19. Rad1 {[%clk 0:01:09.4]} 19... Bxd4
{[%clk 0:01:32.3]} 20. Rxd4 {[%clk 0:01:09.4]} 20... Qf6 {[%clk 0:01:33.2]} 21.
Nd1 {[%clk 0:01:06.9]} 21... Bc6 {[%clk 0:01:21.1]} 22. f4 {[%clk 0:00:58.9]}
22... Rae8 {[%clk 0:01:13.4]} 23. Ne3 {[%clk 0:00:57.4]} 23... e5 {[%clk
0:01:02.5]} 24. Ng4 {[%clk 0:00:55.9]} 24... Qf5 {[%clk 0:01:01.2]} 25. fxe5
{[%clk 0:00:41.1]} 25... h5 {[%clk 0:01:00.4]} 26. Rf1 {[%clk 0:00:40.8]} 26...
Qg5 {[%clk 0:00:59.9]} 27. h4 {[%clk 0:00:29.9]} 27... Qg6 {[%clk 0:00:32.4]}
28. Rxf8+ {[%clk 0:00:25.4]} 28... Rxf8 {[%clk 0:00:32.6]} 29. Nh2 {[%clk
0:00:24.9]} 29... Nd7 {[%clk 0:00:26.2]} 30. Nf3 {[%clk 0:00:23.8]} 30... Nc5
{[%clk 0:00:22.7]} 31. Qc1 {[%clk 0:00:17.3]} 31... Ne6 {[%clk 0:00:21.5]} 32.
Rd1 {[%clk 0:00:16.2]} 32... d4 {[%clk 0:00:21.8]} 33. Bc4 {[%clk 0:00:15.5]}
33... Bxf3 {[%clk 0:00:18.9]} 34. Bxe6+ {[%clk 0:00:15.2]} 34... Qxe6 {[%clk
0:00:19.2]} 35. gxf3 {[%clk 0:00:15.5]} 35... Rxf3 {[%clk 0:00:19.8]} 36. Qg5
{[%clk 0:00:14.1]} 36... Qh3 {[%clk 0:00:14.7]} 37. Qd8+ {[%clk 0:00:11.4]}
37... Kh7 {[%clk 0:00:14.4]} 38. Rd2 {[%clk 0:00:06]} 38... Rf1# {[%clk
0:00:14.2]} 0-1

[Event "Early-Titled-Tuesday-Blitz-February-06-2024"]
[Site "Chess.com"]
[Date "2024.02.06"]
[Round "5"]
[White "LileKoridze"]
[Black "RantomOpening"]
[Result "1/2-1/2"]
[WhiteElo "2385"]
[BlackElo "2549"]
[TimeControl "180+1"]
[EndTime "8:55:27 PST"]
[Termination "Game drawn by repetition"]

1. d4 {[%clk 0:03:00.9]} 1... d5 {[%clk 0:03:00.3]} 2. c4 {[%clk 0:03:00.2]}
2... e6 {[%clk 0:03:00.8]} 3. Nf3 {[%clk 0:02:58.2]} 3... a6 {[%clk 0:03:00.8]}
4. cxd5 {[%clk 0:02:57.7]} 4... exd5 {[%clk 0:03:01.7]} 5. g3 {[%clk 0:02:57.4]}
5... Nf6 {[%clk 0:03:01]} 6. Bg2 {[%clk 0:02:55.8]} 6... c6 {[%clk 0:03:01.6]}
7. O-O {[%clk 0:02:55.7]} 7... Bd6 {[%clk 0:03:02.2]} 8. Nc3 {[%clk 0:02:53.6]}
8... O-O {[%clk 0:03:02.5]} 9. Bg5 {[%clk 0:02:46.7]} 9... Bf5 {[%clk
0:03:02.1]} 10. Qd2 {[%clk 0:02:44.6]} 10... h6 {[%clk 0:03:01.1]} 11. Bf4
{[%clk 0:02:43.6]} 11... Ne4 {[%clk 0:02:52.9]} 12. Qc1 {[%clk 0:02:37.4]} 12...
Nxc3 {[%clk 0:02:51.4]} 13. bxc3 {[%clk 0:02:37.1]} 13... Be4 {[%clk 0:02:49.4]}
14. Bxd6 {[%clk 0:02:35.7]} 14... Qxd6 {[%clk 0:02:48.9]} 15. c4 {[%clk
0:02:25.1]} 15... Nd7 {[%clk 0:02:46.7]} 16. cxd5 {[%clk 0:02:22.7]} 16... cxd5
{[%clk 0:02:45.6]} 17. Qb2 {[%clk 0:02:20.7]} 17... b5 {[%clk 0:02:44.9]} 18.
Rac1 {[%clk 0:02:15.1]} 18... Rfc8 {[%clk 0:02:44.4]} 19. Nd2 {[%clk 0:02:12.9]}
19... Bxg2 {[%clk 0:02:43.7]} 20. Kxg2 {[%clk 0:02:12.8]} 20... Nb6 {[%clk
0:02:44.3]} 21. Rxc8+ {[%clk 0:02:08.2]} 21... Rxc8 {[%clk 0:02:43.9]} 22. Rc1
{[%clk 0:02:08.7]} 22... Nc4 {[%clk 0:02:43.8]} 23. Qb3 {[%clk 0:02:02.9]} 23...
Ne3+ {[%clk 0:02:40.4]} 24. Qxe3 {[%clk 0:01:59.8]} 24... Rxc1 {[%clk
0:02:40.4]} 25. Ne4 {[%clk 0:01:51]} 25... Qc6 {[%clk 0:02:40]} 26. Nc5 {[%clk
0:01:48.9]} 26... Rxc5 {[%clk 0:02:31.9]} 27. dxc5 {[%clk 0:01:46.7]} 27... d4+
{[%clk 0:02:32.3]} 28. Qf3 {[%clk 0:01:46.7]} 28... Qxc5 {[%clk 0:02:28.5]} 29.
Qa8+ {[%clk 0:01:45.3]} 29... Kh7 {[%clk 0:02:28.1]} 30. Qxa6 {[%clk 0:01:43.9]}
30... Qd5+ {[%clk 0:02:26.6]} 31. Kg1 {[%clk 0:01:43]} 31... Qc4 {[%clk
0:02:24.6]} 32. Kf1 {[%clk 0:01:35]} 32... Qc1+ {[%clk 0:02:21.2]} 33. Kg2
{[%clk 0:01:32.3]} 33... Qb2 {[%clk 0:02:21.5]} 34. Kf1 {[%clk 0:01:21.2]} 34...
Qb1+ {[%clk 0:01:53.8]} 35. Kg2 {[%clk 0:01:12.3]} 35... Qe4+ {[%clk 0:01:54.7]}
36. Kg1 {[%clk 0:01:02.1]} 36... Qxe2 {[%clk 0:01:54.2]} 37. Qc8 {[%clk
0:01:00.3]} 37... Qf3 {[%clk 0:01:14.6]} 38. Qc2+ {[%clk 0:00:55]} 38... d3
{[%clk 0:01:13.8]} 39. Qd2 {[%clk 0:00:55.3]} 39... Qe2 {[%clk 0:01:11.9]} 40.
Qf4 {[%clk 0:00:55]} 40... Kg8 {[%clk 0:00:54.8]} 41. Qb8+ {[%clk 0:00:53.1]}
41... Kh7 {[%clk 0:00:54.6]} 42. Qxb5 {[%clk 0:00:51.3]} 42... Qe1+ {[%clk
0:00:50.6]} 43. Kg2 {[%clk 0:00:51.7]} 43... d2 {[%clk 0:00:50]} 44. Qf5+ {[%clk
0:00:51.1]} 44... Kg8 {[%clk 0:00:47.5]} 45. Qc8+ {[%clk 0:00:51.2]} 45... Kh7
{[%clk 0:00:02.6]} 46. Qf5+ {[%clk 0:00:50.1]} 46... Kh8 {[%clk 0:00:02.3]} 47.
Qc8+ {[%clk 0:00:50]} 47... Kh7 {[%clk 0:00:02]} 48. Qf5+ {[%clk 0:00:50.4]}
1/2-1/2

[Event "Early-Titled-Tuesday-Blitz-February-06-2024"]
[Site "Chess.com"]
[Date "2024.02.06"]
[Round "5"]
[White "Adekrisna123"]
[Black "Makswolf200817"]
[Result "1-0"]
[WhiteElo "2552"]
[BlackElo "2709"]
[TimeControl "180+1"]
[EndTime "8:55:29 PST"]
[Termination "Adekrisna123 won on time"]

1. d4 {[%clk 0:03:00.9]} 1... Nf6 {[%clk 0:02:58.1]} 2. Bf4 {[%clk 0:03:01]}
2... e6 {[%clk 0:02:56.8]} 3. e3 {[%clk 0:02:59.5]} 3... Be7 {[%clk 0:02:54.5]}
4. Nd2 {[%clk 0:02:58]} 4... b6 {[%clk 0:02:53.1]} 5. h3 {[%clk 0:02:54.6]} 5...
Bb7 {[%clk 0:02:51.5]} 6. Ngf3 {[%clk 0:02:54.4]} 6... c5 {[%clk 0:02:50.1]} 7.
c3 {[%clk 0:02:53.9]} 7... d6 {[%clk 0:02:49]} 8. Bd3 {[%clk 0:02:53.7]} 8...
Nbd7 {[%clk 0:02:47.4]} 9. O-O {[%clk 0:02:53.1]} 9... O-O {[%clk 0:02:41.2]}
10. Bh2 {[%clk 0:02:52.3]} 10... cxd4 {[%clk 0:02:38.7]} 11. exd4 {[%clk
0:02:51.4]} 11... a6 {[%clk 0:02:37.1]} 12. Re1 {[%clk 0:02:50.3]} 12... Qc7
{[%clk 0:02:32.7]} 13. a4 {[%clk 0:02:48.3]} 13... Rfe8 {[%clk 0:02:25.2]} 14.
Qe2 {[%clk 0:02:42.3]} 14... Bf8 {[%clk 0:02:23]} 15. Nc4 {[%clk 0:02:23.8]}
15... Qc6 {[%clk 0:01:52.2]} 16. a5 {[%clk 0:01:37.6]} 16... e5 {[%clk
0:01:21.4]} 17. dxe5 {[%clk 0:01:32.5]} 17... dxe5 {[%clk 0:01:21.3]} 18. Ncxe5
{[%clk 0:01:20]} 18... Nxe5 {[%clk 0:01:00.7]} 19. Bxe5 {[%clk 0:01:20.4]} 19...
Nd7 {[%clk 0:00:47.8]} 20. Qf1 {[%clk 0:01:10.8]} 20... bxa5 {[%clk 0:00:24.2]}
21. Bd4 {[%clk 0:00:40]} 21... Qc7 {[%clk 0:00:22.2]} 22. Ng5 {[%clk 0:00:34.6]}
22... h6 {[%clk 0:00:19.8]} 23. Nxf7 {[%clk 0:00:31.1]} 23... Nb6 {[%clk
0:00:08.2]} 24. Ne5 {[%clk 0:00:19.9]} 24... Nd5 {[%clk 0:00:06.8]} 25. Bc4
{[%clk 0:00:19.8]} 25... Rad8 {[%clk 0:00:04.1]} 26. Qd3 {[%clk 0:00:18.8]}
26... Bd6 {[%clk 0:00:01.3]} 27. Qe4 {[%clk 0:00:18.1]} 27... Bc5 {[%clk
0:00:01.2]} 28. Rad1 {[%clk 0:00:13.8]} 28... Bxd4 {[%clk 0:00:01.2]} 29. Rxd4
{[%clk 0:00:14]} 29... Rd6 {[%clk 0:00:01.3]} 30. Red1 {[%clk 0:00:13.8]} 30...
Red8 {[%clk 0:00:01.4]} 31. Ng6 {[%clk 0:00:12.3]} 1-0

[Event "Early-Titled-Tuesday-Blitz-February-06-2024"]
[Site "Chess.com"]
[Date "2024.02.06"]
[Round "5"]
[White "Hikaru"]
[Black "DonkyDonkyDonkey"]
[Result "1-0"]
[WhiteElo "3313"]
[BlackElo "2914"]
[TimeControl "180+1"]
[EndTime "8:55:30 PST"]
[Termination "Hikaru won by resignation"]

1. e4 {[%clk 0:03:00.9]} 1... c5 {[%clk 0:03:00.2]} 2. Nf3 {[%clk 0:03:00]} 2...
d6 {[%clk 0:03:00.6]} 3. d4 {[%clk 0:02:59.3]} 3... cxd4 {[%clk 0:03:00.8]} 4.
Qxd4 {[%clk 0:03:00.2]} 4... Nc6 {[%clk 0:03:00.3]} 5. Bb5 {[%clk 0:03:00.1]}
5... Bd7 {[%clk 0:03:01]} 6. Bxc6 {[%clk 0:03:00.1]} 6... Bxc6 {[%clk
0:03:01.9]} 7. Nc3 {[%clk 0:03:00.2]} 7... Nf6 {[%clk 0:03:02.2]} 8. Bg5 {[%clk
0:03:00.1]} 8... e6 {[%clk 0:03:02]} 9. O-O-O {[%clk 0:02:59.8]} 9... Be7 {[%clk
0:03:02.1]} 10. Qd3 {[%clk 0:03:00.1]} 10... Qa5 {[%clk 0:02:59.9]} 11. h4
{[%clk 0:03:00.2]} 11... h6 {[%clk 0:02:59.3]} 12. Bxf6 {[%clk 0:02:51.6]} 12...
Bxf6 {[%clk 0:03:00.2]} 13. Nd4 {[%clk 0:02:52.2]} 13... Rc8 {[%clk 0:02:56]}
14. f4 {[%clk 0:02:51.6]} 14... Qb6 {[%clk 0:02:45.8]} 15. g3 {[%clk 0:02:42.9]}
15... Bxd4 {[%clk 0:02:40.7]} 16. Qxd4 {[%clk 0:02:42.9]} 16... Qxd4 {[%clk
0:02:41.6]} 17. Rxd4 {[%clk 0:02:43.5]} 17... Ke7 {[%clk 0:02:42.3]} 18. Rhd1
{[%clk 0:02:42]} 18... Rhd8 {[%clk 0:02:42.6]} 19. b3 {[%clk 0:02:37.1]} 19...
Rc7 {[%clk 0:02:32.5]} 20. Kb2 {[%clk 0:02:37.2]} 20... a6 {[%clk 0:02:21.3]}
21. R1d2 {[%clk 0:02:27.2]} 21... Rcd7 {[%clk 0:02:16.4]} 22. a4 {[%clk
0:02:23.6]} 22... Rc7 {[%clk 0:02:06]} 23. R4d3 {[%clk 0:02:19.2]} 23... Rcd7
{[%clk 0:01:55.5]} 24. Re3 {[%clk 0:02:18]} 24... Kf8 {[%clk 0:01:54]} 25. Na2
{[%clk 0:01:56.8]} 25... d5 {[%clk 0:01:36.3]} 26. Nb4 {[%clk 0:01:56]} 26... d4
{[%clk 0:01:36.4]} 27. Re1 {[%clk 0:01:53.3]} 27... a5 {[%clk 0:01:35.1]} 28.
Nd3 {[%clk 0:01:51.5]} 28... b6 {[%clk 0:01:28]} 29. Ne5 {[%clk 0:01:14]} 29...
Rc7 {[%clk 0:01:28]} 30. Ka3 {[%clk 0:00:58.5]} 30... Bb7 {[%clk 0:01:25.1]} 31.
c4 {[%clk 0:00:56.4]} 31... f6 {[%clk 0:01:17.1]} 32. Ng6+ {[%clk 0:00:52.6]}
32... Kf7 {[%clk 0:01:17.2]} 33. h5 {[%clk 0:00:53.3]} 33... d3 {[%clk
0:01:11.6]} 34. Kb2 {[%clk 0:00:49.3]} 34... Rd4 {[%clk 0:01:07.6]} 35. e5
{[%clk 0:00:49.7]} 35... Bf3 {[%clk 0:01:04.3]} 36. Kc3 {[%clk 0:00:45.6]} 36...
Rcd7 {[%clk 0:01:03.6]} 37. f5 {[%clk 0:00:42.2]} 37... Bg4 {[%clk 0:00:51.9]}
38. fxe6+ {[%clk 0:00:37.4]} 38... Bxe6 {[%clk 0:00:51.8]} 39. Nf4 {[%clk
0:00:37.8]} 39... fxe5 {[%clk 0:00:34.7]} 40. Rxe5 {[%clk 0:00:37.2]} 40... Bg4
{[%clk 0:00:35.1]} 41. Nd5 {[%clk 0:00:31.7]} 41... R4xd5 {[%clk 0:00:32]} 42.
Rxd5 {[%clk 0:00:29.9]} 42... Re7 {[%clk 0:00:32.6]} 43. R2xd3 {[%clk
0:00:28.8]} 43... Re1 {[%clk 0:00:32.4]} 44. Rb5 {[%clk 0:00:28.4]} 44... Re6
{[%clk 0:00:31.4]} 45. Rd4 {[%clk 0:00:26.5]} 45... Bh3 {[%clk 0:00:30.9]} 46.
c5 {[%clk 0:00:24.4]} 46... bxc5 {[%clk 0:00:30.5]} 47. Rxc5 {[%clk 0:00:25.1]}
47... Re3+ {[%clk 0:00:30.9]} 48. Rd3 {[%clk 0:00:24.5]} 48... Re1 {[%clk
0:00:30]} 49. Rxa5 {[%clk 0:00:24.4]} 49... Be6 {[%clk 0:00:30.1]} 50. Kb2
{[%clk 0:00:20.2]} 50... Re2+ {[%clk 0:00:30.4]} 51. Ka3 {[%clk 0:00:20.5]}
51... Kf6 {[%clk 0:00:29.6]} 52. Rf3+ {[%clk 0:00:20.1]} 52... Ke7 {[%clk
0:00:30.2]} 53. Ra7+ {[%clk 0:00:20.7]} 53... Kd6 {[%clk 0:00:30.8]} 54. Rxg7
{[%clk 0:00:21.3]} 1-0

[Event "Early-Titled-Tuesday-Blitz-February-06-2024"]
[Site "Chess.com"]
[Date "2024.02.06"]
[Round "5"]
[White "BogdanDeac"]
[Black "Thunderbolt135"]
[Result "1-0"]
[WhiteElo "3023"]
[BlackElo "2692"]
[TimeControl "180+1"]
[EndTime "8:55:30 PST"]
[Termination "BogdanDeac won by resignation"]

1. d4 {[%clk 0:03:00.9]} 1... Nf6 {[%clk 0:02:59.8]} 2. Nf3 {[%clk 0:03:00.9]}
2... e6 {[%clk 0:02:59.4]} 3. Bf4 {[%clk 0:03:00.6]} 3... b6 {[%clk 0:02:56.4]}
4. e3 {[%clk 0:03:00.5]} 4... Bb7 {[%clk 0:02:56.9]} 5. c4 {[%clk 0:03:01.1]}
5... Bb4+ {[%clk 0:02:47.5]} 6. Nfd2 {[%clk 0:03:00.4]} 6... O-O {[%clk
0:02:44.9]} 7. a3 {[%clk 0:03:00.1]} 7... Bxd2+ {[%clk 0:02:31.4]} 8. Qxd2
{[%clk 0:02:56]} 8... Ne4 {[%clk 0:02:00]} 9. Qc2 {[%clk 0:02:54.7]} 9... f5
{[%clk 0:01:58.1]} 10. f3 {[%clk 0:02:54.3]} 10... Qh4+ {[%clk 0:01:30.1]} 11.
g3 {[%clk 0:02:53.4]} 11... Qh5 {[%clk 0:01:30.8]} 12. Bg2 {[%clk 0:01:59.5]}
12... Ng5 {[%clk 0:01:27.7]} 13. Bxg5 {[%clk 0:01:56.9]} 13... Qxg5 {[%clk
0:01:28.6]} 14. f4 {[%clk 0:01:57.1]} 14... Bxg2 {[%clk 0:01:20]} 15. fxg5
{[%clk 0:01:22.2]} 15... Bxh1 {[%clk 0:01:19.2]} 16. Nc3 {[%clk 0:01:22.7]}
16... Bf3 {[%clk 0:00:55.7]} 17. d5 {[%clk 0:01:13.8]} 17... a5 {[%clk
0:00:31.3]} 18. Qa4 {[%clk 0:00:50.1]} 18... Bh5 {[%clk 0:00:18.9]} 19. Ne2
{[%clk 0:00:38.5]} 19... Na6 {[%clk 0:00:13.6]} 20. Qxd7 {[%clk 0:00:23.7]}
20... Nc5 {[%clk 0:00:13.9]} 21. Qc6 {[%clk 0:00:16.1]} 21... Rfc8 {[%clk
0:00:14.6]} 22. dxe6 {[%clk 0:00:13.2]} 22... Nd3+ {[%clk 0:00:07.7]} 23. Kf1
{[%clk 0:00:12.8]} 23... Ne5 {[%clk 0:00:05.2]} 24. Qd5 {[%clk 0:00:11.3]} 24...
Ng6 {[%clk 0:00:03.5]} 25. e7+ {[%clk 0:00:11]} 25... Kh8 {[%clk 0:00:04]} 26.
Nf4 {[%clk 0:00:11]} 26... Nxf4 {[%clk 0:00:03.9]} 27. exf4 {[%clk 0:00:10.8]}
27... Re8 {[%clk 0:00:03]} 28. Re1 {[%clk 0:00:10.7]} 28... Bg6 {[%clk
0:00:02.9]} 29. g4 {[%clk 0:00:10.3]} 29... fxg4 {[%clk 0:00:02.8]} 30. f5
{[%clk 0:00:10.8]} 30... Bh5 {[%clk 0:00:03.5]} 31. f6 {[%clk 0:00:11.2]} 31...
gxf6 {[%clk 0:00:04.4]} 32. gxf6 {[%clk 0:00:11.2]} 32... c6 {[%clk 0:00:03.5]}
33. Qxh5 {[%clk 0:00:10.5]} 1-0

[Event "Early-Titled-Tuesday-Blitz-February-06-2024"]
[Site "Chess.com"]
[Date "2024.02.06"]
[Round "5"]
[White "JonasEilenberg"]
[Black "bylavochka"]
[Result "1-0"]
[WhiteElo "2532"]
[BlackElo "2293"]
[TimeControl "180+1"]
[EndTime "8:55:30 PST"]
[Termination "JonasEilenberg won by resignation"]

1. e4 {[%clk 0:03:00.9]} 1... c5 {[%clk 0:02:59.9]} 2. Nf3 {[%clk 0:02:59.5]}
2... d6 {[%clk 0:02:59.9]} 3. Bb5+ {[%clk 0:02:54.3]} 3... Bd7 {[%clk
0:02:59.8]} 4. c4 {[%clk 0:02:54]} 4... Nf6 {[%clk 0:02:56.7]} 5. Nc3 {[%clk
0:02:54]} 5... g6 {[%clk 0:02:52.9]} 6. Bxd7+ {[%clk 0:02:48.5]} 6... Qxd7
{[%clk 0:02:52.5]} 7. d4 {[%clk 0:02:48.6]} 7... cxd4 {[%clk 0:02:50.9]} 8. Qxd4
{[%clk 0:02:49.5]} 8... Bg7 {[%clk 0:02:50.9]} 9. Bg5 {[%clk 0:02:45.9]} 9...
O-O {[%clk 0:02:50.7]} 10. O-O {[%clk 0:02:44]} 10... Nc6 {[%clk 0:02:50]} 11.
Qd2 {[%clk 0:02:43.3]} 11... Rfc8 {[%clk 0:02:49.2]} 12. b3 {[%clk 0:02:39.4]}
12... Qd8 {[%clk 0:02:37.7]} 13. Rac1 {[%clk 0:02:37.9]} 13... Qa5 {[%clk
0:02:33.1]} 14. Rfe1 {[%clk 0:02:28.7]} 14... Rab8 {[%clk 0:02:10.1]} 15. h3
{[%clk 0:02:21.3]} 15... a6 {[%clk 0:01:56.2]} 16. Nd5 {[%clk 0:02:14.2]} 16...
Qxd2 {[%clk 0:01:54.2]} 17. Nxd2 {[%clk 0:02:15.1]} 17... Re8 {[%clk 0:01:20.3]}
18. Nc7 {[%clk 0:02:02.1]} 18... Rec8 {[%clk 0:01:18.6]} 19. Nd5 {[%clk
0:02:02.8]} 19... Re8 {[%clk 0:01:18.5]} 20. Nxf6+ {[%clk 0:01:48.6]} 20... Bxf6
{[%clk 0:01:15.7]} 21. Bxf6 {[%clk 0:01:48.9]} 21... exf6 {[%clk 0:01:16.6]} 22.
Rcd1 {[%clk 0:01:45.8]} 22... Re6 {[%clk 0:01:09.8]} 23. f3 {[%clk 0:01:26.9]}
23... Rbe8 {[%clk 0:01:06.9]} 24. Kf2 {[%clk 0:01:27.4]} 24... Nb4 {[%clk
0:01:00.2]} 25. Nb1 {[%clk 0:01:15.2]} 25... Nxa2 {[%clk 0:00:59.4]} 26. Rd2
{[%clk 0:01:15.8]} 26... Nb4 {[%clk 0:00:57.6]} 27. Red1 {[%clk 0:01:16.4]}
27... b5 {[%clk 0:00:35.2]} 28. Rxd6 {[%clk 0:01:11.4]} 28... bxc4 {[%clk
0:00:29.5]} 29. bxc4 {[%clk 0:01:12.3]} 29... Rc8 {[%clk 0:00:29]} 30. Na3
{[%clk 0:01:11]} 30... Rc6 {[%clk 0:00:20]} 31. Rd8+ {[%clk 0:01:09.8]} 31...
Kg7 {[%clk 0:00:20]} 32. Rb8 {[%clk 0:01:08.8]} 32... Rb6 {[%clk 0:00:18.3]} 33.
Rdd8 {[%clk 0:00:54.3]} 33... Rxb8 {[%clk 0:00:10.3]} 34. Rxb8 {[%clk
0:00:55.2]} 34... Nd3+ {[%clk 0:00:10.3]} 35. Ke3 {[%clk 0:00:53.7]} 35... Rd6
{[%clk 0:00:06.9]} 36. Nc2 {[%clk 0:00:44.4]} 36... Ne5 {[%clk 0:00:06.9]} 37.
Rc8 {[%clk 0:00:30.2]} 37... Rd3+ {[%clk 0:00:06.7]} 38. Ke2 {[%clk 0:00:30.5]}
38... Rc3 {[%clk 0:00:07.1]} 39. Ne3 {[%clk 0:00:31.1]} 39... a5 {[%clk
0:00:04.7]} 40. f4 {[%clk 0:00:30.8]} 40... Nd7 {[%clk 0:00:05]} 41. Nd5 {[%clk
0:00:30.7]} 41... a4 {[%clk 0:00:04.5]} 42. Nxc3 {[%clk 0:00:30.6]} 42... a3
{[%clk 0:00:04]} 43. Ra8 {[%clk 0:00:29.2]} 43... Nc5 {[%clk 0:00:04]} 44. Rxa3
{[%clk 0:00:29.1]} 1-0